bitfinex/quotes_SOLUSD_20250422
["timestamp","ask_amount","ask_price","bid_price","bid_amount"]
[1745323985831,15.14979725,140.24,140.2,82.6]
[1745323987145,15.14979725,140.24,140.2,90.61897338]
[1745323988756,15.14979725,140.24,140.2,82.6]
[1745323992353,7.13082387,140.24,140.2,90.61897338]
[1745323992547,8.01897338,140.23,140.2,82.6]
[1745323993765,7.13165026,140.22,140.2,82.6]
[1745323994862,7.13114169,140.23,140.2,82.6]
[1745323997140,8.01897338,140.24,140.2,108.6]
[1745323997458,8.01897338,140.24,140.2,82.6]
[1745324002976,7.13114169,140.23,140.2,82.6]
[1745324005365,7.1306332,140.24,140.2,82.6]
[1745324005665,15.14960658,140.24,140.2,82.6]
[1745324006565,8.01897338,140.22,140.2,82.6]
[1745324006768,8.01897338,140.21,140.19,1e-08]
[1745324006942,8.01897338,140.2,140.19,1e-08]
[1745324007470,15.15164099,140.2,140.19,1e-08]
[1745324011367,33.80128985,140.2,140.19,1e-08]
[1745324017156,59.80128985,140.2,140.19,1e-08]
[1745324029281,33.80128985,140.2,140.19,1e-08]
[1745324034997,7.13266761,140.2,140.19,1e-08]
[1745324036094,24.96131077,140.22,140.19,1e-08]
[1745324036886,7.13165026,140.22,140.19,1e-08]
[1745324037785,7.1313478,140.23,140.19,90.61897339]
[1745324038191,7.1313478,140.23,140.2,8.01897338]
[1745324040585,7.1306332,140.24,140.2,8.01897338]
[1745324043101,7.1306332,140.24,140.21,8.01897338]
[1745324043671,7.13036515,140.25,140.22,8.01897338]
[1745324043979,7.13036515,140.25,140.23,14.41307338]
[1745324044995,0.063,140.26,140.23,14.41307338]
[1745324047095,18.64964886,140.23,140.19,1e-08]
[1745324047404,26.66862224,140.2,140.19,1e-08]
[1745324048187,8.01897338,140.2,140.19,1e-08]
[1745324050100,15.15164099,140.2,140.19,1e-08]
[1745324053795,7.13266761,140.2,140.19,1e-08]
[1745324054003,15.15164099,140.2,140.19,1e-08]
[1745324063620,24.9612343,140.22,140.19,1e-08]
[1745324063905,8.01897338,140.2,140.19,1e-08]
[1745324065511,15.15164099,140.2,140.19,1e-08]
[1745324076523,33.80128985,140.2,140.19,1e-08]
[1745324076704,87.29629697,140.2,140.14,0.063]
[1745324077027,8.01897338,140.15,140.14,0.063]
[1745324078236,15.15418565,140.15,140.14,0.063]
[1745324080100,7.13521227,140.15,140.14,0.063]
[1745324091031,15.15418565,140.15,140.14,0.063]
[1745324096336,7.13521227,140.15,140.14,0.063]
[1745324102347,7.13472097,140.16,140.14,0.063]
[1745324106843,15.15369435,140.16,140.14,0.063]
[1745324107642,7.13472097,140.16,140.14,0.063]
[1745324108652,50.96967967,140.17,140.14,0.063]
[1745324109152,58.98865305,140.17,140.14,0.063]
[1745324117264,33.13419419,140.17,140.14,0.063]
[1745324118271,7.13419419,140.17,140.14,0.063]
[1745324122152,15.15316757,140.17,140.14,0.063]
[1745324122657,8.01897338,140.16,140.14,0.063]
[1745324123170,8.01897338,140.15,140.14,0.063]
[1745324123370,8.01897338,140.16,140.14,0.063]
[1745324124872,7.13521227,140.15,140.14,0.063]
[1745324127474,15.15418565,140.15,140.14,0.063]
[1745324128479,26.0,140.11,140.08,82.63]
[1745324128687,8.01897338,140.1,140.08,82.63]
[1745324128980,15.15724163,140.09,140.08,0.03]
[1745324129460,7.13826825,140.09,140.08,0.03]
[1745324131185,7.13775874,140.1,140.08,0.03]
[1745324131679,7.13775874,140.1,140.08,8.04897338]
[1745324132987,7.1372493,140.11,140.08,8.04897338]
[1745324133189,7.1372493,140.11,140.08,0.03]
[1745324133862,15.15622268,140.11,140.08,0.03]
[1745324134686,24.98037256,140.11,140.08,0.03]
[1745324135189,32.99934594,140.11,140.08,0.03]
[1745324135789,8.01897338,140.1,140.08,0.03]
[1745324137092,32.99934594,140.11,140.08,0.03]
[1745324141088,24.98037256,140.11,140.08,0.03]
[1745324142385,25.86209664,140.11,140.08,0.03]
[1745324143487,8.01897338,140.1,140.08,0.03]
[1745324144367,15.15724163,140.09,140.08,0.03]
[1745324148898,7.13826825,140.09,140.08,0.03]
[1745324153499,15.15724163,140.09,140.08,0.03]
[1745324154904,7.13826825,140.09,140.08,0.03]
[1745324155593,7.13775874,140.1,140.08,0.03]
[1745324158407,7.13775874,140.1,140.08,8.04897338]
[1745324158795,7.13775874,140.1,140.08,0.03]
[1745324159709,1.5951,140.15,140.09,8.01897338]
[1745324159911,7.13521227,140.15,140.11,8.01897338]
[1745324160211,7.13521227,140.15,140.12,8.01897338]
[1745324161602,7.13521227,140.15,140.13,8.01897338]
[1745324161799,7.13521227,140.15,140.11,82.6]
[1745324162000,15.15418565,140.15,140.11,82.6]
[1745324162202,32.99221633,140.15,140.11,82.6]
[1745324162425,8.01897338,140.13,140.08,97.07]
[1745324162606,8.01897338,140.12,140.08,90.64897338]
[1745324162808,26.56834295,140.15,140.08,90.64897338]
[1745324162809,8.01897338,140.13,140.08,90.64897338]
[1745324163009,26.56834295,140.15,140.09,8.01897338]
[1745324163206,8.01897338,140.14,140.09,8.01897338]
[1745324164016,7.13623064,140.13,140.1,8.01897338]
[1745324164213,7.13623064,140.13,140.11,8.01897338]
[1745324165623,24.97324295,140.15,140.11,8.01897338]
[1745324166123,7.13521227,140.15,140.11,8.01897338]
[1745324166617,15.15418565,140.15,140.08,89.76870507]
[1745324166922,15.15418565,140.15,140.11,8.01897338]
[1745324167922,15.15418565,140.15,140.1,8.01897338]
[1745324168527,15.15418565,140.15,140.11,8.01897338]
[1745324169331,15.15418565,140.15,140.1,8.01897338]
[1745324169739,8.01897338,140.14,140.09,8.01897338]
[1745324170024,7.13673993,140.12,140.08,90.64897338]
[1745324171322,7.13673993,140.12,140.09,8.01897338]
[1745324172229,7.13623064,140.13,140.09,8.01897338]
[1745324173020,7.13521227,140.15,140.11,8.01897338]
[1745324173408,15.15418565,140.15,140.1,8.01897338]
[1745324173717,7.13521227,140.15,140.11,8.01897338]
[1745324175128,15.15418565,140.15,140.1,8.01897338]
[1745324175319,8.01897338,140.14,140.08,90.64897338]
[1745324175845,8.01897338,140.13,140.08,82.63]
[1745324176011,8.01897338,140.13,140.08,90.64897338]
[1745324176212,7.13673993,140.12,140.08,90.64897338]
[1745324178030,7.13673993,140.12,140.09,8.01897338]
[1745324178638,7.13623064,140.13,140.09,8.01897338]
[1745324181346,8.01897338,140.13,140.08,90.64897338]
[1745324181638,8.01897338,140.14,140.08,82.63]
[1745324181843,8.01897338,140.13,140.08,82.63]
[1745324182020,8.01897338,140.13,140.08,90.64897338]
[1745324183424,26.0,140.16,140.08,90.64897338]
[1745324183629,32.99221633,140.15,140.1,8.01897338]
[1745324185336,8.01897338,140.14,140.1,8.01897338]
[1745324185523,24.97324295,140.15,140.1,8.01897338]
[1745324185840,7.13521227,140.15,140.12,8.01897338]
[1745324187048,7.13470319,140.16,140.12,8.01897338]
[1745324187247,15.15367657,140.16,140.12,8.01897338]
[1745324188752,15.15367657,140.16,140.09,89.73791132]
[1745324188753,7.13470319,140.16,140.13,8.01897338]
[1745324190234,7.13470319,140.16,140.12,8.01897338]
[1745324190429,15.15367657,140.16,140.11,8.01897338]
[1745324190629,8.01897338,140.15,140.1,8.01897338]
[1745324190860,7.13572142,140.14,140.1,8.01897338]
[1745324191647,7.13572142,140.14,140.11,8.01897338]
[1745324192844,7.13521227,140.15,140.11,8.01897338]
[1745324196863,7.13521227,140.15,140.13,8.01897338]
[1745324198162,7.13419419,140.17,140.13,8.01897338]
[1745324198341,15.15316757,140.17,140.12,8.01897338]
[1745324202553,32.98865305,140.17,140.12,8.01897338]
[1745324205660,24.96967967,140.17,140.13,8.01897338]
[1745324206569,7.13419419,140.17,140.14,8.01897338]
[1745324206744,7.13419419,140.17,140.15,8.01897338]
[1745324208354,7.13368526,140.18,140.14,8.01897338]
[1745324209361,0.063,140.19,140.14,8.01897338]
[1745324209671,0.063,140.19,140.15,8.01897338]
[1745324209872,0.063,140.19,140.13,82.6]
[1745324210052,0.063,140.19,140.16,8.01897338]
[1745324210452,0.063,140.19,140.15,8.01897338]
[1745324210970,7.1961764,140.19,140.15,8.01897338]
[1745324211173,0.063,140.19,140.18,8.01897338]
[1745324213178,0.063,140.19,140.16,7.13470319]
[1745324213345,0.063,140.19,140.15,116.3949]
[1745324213550,0.063,140.19,140.18,8.01897338]
[1745324215761,0.063,140.19,140.18,108.6]
[1745324215953,0.063,140.19,140.18,116.61897338]
[1745324218965,0.063,140.19,140.18,108.6]
[1745324219165,0.063,140.19,140.18,116.61897338]
[1745324220291,0.063,140.19,140.18,108.6]
[1745324220575,0.063,140.19,140.18,142.4023075]
[1745324220758,0.063,140.19,140.18,135.26862224]
[1745324220962,0.063,140.19,140.18,142.4023075]
[1745324224174,0.063,140.21,140.2,18.64964886]
[1745324224384,0.063,140.21,140.2,106.95941576]
[1745324224562,0.063,140.21,140.2,80.95941576]
[1745324224989,0.063,140.23,140.22,44.64964886]
[1745324225174,0.063,140.23,140.22,135.20562224]
[1745324226778,0.063,140.23,140.22,142.3372725]
[1745324227591,0.063,140.23,140.22,135.20562224]
[1745324229100,0.063,140.23,140.22,108.537]
[1745324229272,0.063,140.23,140.22,116.55597338]
[1745324231973,0.063,140.23,140.22,90.55597338]
[1745324232175,0.063,140.23,140.22,82.537]
[1745324236002,0.063,140.23,140.18,26.0]
[1745324236305,8.01897338,140.21,140.18,82.537]
[1745324236789,8.01897338,140.22,140.18,90.55597338]
[1745324238105,7.1321589,140.21,140.18,90.55597338]
[1745324238609,7.1321589,140.21,140.19,8.01897338]
[1745324238791,7.1321589,140.21,140.18,82.537]
[1745324239483,24.96255616,140.21,140.18,90.55597338]
[1745324239805,24.96255616,140.21,140.18,82.537]
[1745324240393,24.96255616,140.21,140.18,90.55597338]
[1745324241299,17.83039726,140.21,140.18,90.55597338]
[1745324241492,17.83039726,140.21,140.18,82.537]
[1745324241704,27.38227064,140.21,140.18,82.537]
[1745324242889,19.36329726,140.21,140.18,82.537]
[1745324243283,24.96255616,140.21,140.18,90.55597338]
[1745324243484,24.96255616,140.21,140.18,82.537]
[1745324244103,24.96255616,140.21,140.14,14.62]
[1745324244104,8.01897338,140.2,140.14,123.157]
[1745324244410,8.01897338,140.2,140.16,8.01897338]
[1745324245412,7.1331764,140.19,140.15,8.01897338]
[1745324245903,7.1331764,140.19,140.14,123.157]
[1745324245904,7.1331764,140.19,140.16,8.01897338]
[1745324246791,7.1331764,140.19,140.17,8.01897338]
[1745324247416,24.96544856,140.2,140.17,8.01897338]
[1745324247715,24.96544856,140.2,140.14,123.157]
[1745324248016,24.96544856,140.2,140.16,8.01897338]
[1745324248902,24.96544856,140.2,140.14,123.157]
[1745324249099,24.96544856,140.2,140.16,8.01897338]
[1745324250906,60.67964912,140.23,140.16,8.01897338]
[1745324251119,8.01897338,140.21,140.16,8.01897338]
[1745324252214,8.01897338,140.22,140.17,8.01897338]
[1745324253820,8.01897338,140.2,140.14,123.157]
[1745324254126,8.01897338,140.19,140.15,8.01897338]
[1745324254342,8.01897338,140.2,140.15,8.01897338]
[1745324254499,32.98152954,140.21,140.16,8.01897338]
[1745324254698,32.98152954,140.21,140.14,123.157]
[1745324254904,32.98152954,140.21,140.16,8.01897338]
[1745324255314,8.01897338,140.2,140.14,123.157]
[1745324255502,8.01897338,140.19,140.14,123.157]
[1745324255830,8.01897338,140.19,140.15,8.01897338]
[1745324256122,8.01897338,140.19,140.14,105.17597338]
[1745324256123,7.13368526,140.18,140.14,105.17597338]
[1745324258437,7.13368526,140.18,140.15,8.01897338]
[1745324259827,7.13368526,140.18,140.14,90.55597338]
[1745324260227,8.01897338,140.17,140.14,82.537]
[1745324260609,7.13470319,140.16,140.14,82.537]
[1745324261438,15.15367657,140.16,140.14,82.537]
[1745324261921,7.13470319,140.16,140.14,82.537]
[1745324262933,15.15367657,140.16,140.14,82.537]
[1745324263133,8.01897338,140.15,140.12,0.03]
[1745324263342,24.97146118,140.16,140.12,0.03]
[1745324263343,8.01897338,140.14,140.12,0.03]
[1745324263551,8.01897338,140.13,140.12,0.03]
[1745324264731,15.15520402,140.13,140.12,0.03]
[1745324265748,7.13623064,140.13,140.12,0.03]
[1745324268149,15.15520402,140.13,140.12,0.03]
[1745324274954,15.15520402,140.13,140.12,1e-08]
[1745324277362,7.13623064,140.13,140.12,1e-08]
[1745324277675,15.15520402,140.13,140.12,1e-08]
[1745324288357,7.13623064,140.13,140.12,1e-08]
[1745324290458,15.15520402,140.13,140.12,1e-08]
[1745324295799,15.15520402,140.13,140.08,1e-08]
[1745324295800,59.80485288,140.13,140.08,1e-08]
[1745324295971,8.01897338,140.09,140.08,1e-08]
[1745324297277,15.15724163,140.09,140.08,1e-08]
[1745324298586,15.15724163,140.09,140.07,1e-08]
[1745324298791,8.01897338,140.08,140.07,1e-08]
[1745324299269,15.15775122,140.08,140.07,1e-08]
[1745324303507,7.13877784,140.08,140.07,1e-08]
[1745324304373,7.13847135,140.09,140.07,1e-08]
[1745324309500,8.01897338,140.08,140.07,1e-08]
[1745324310507,15.15775122,140.08,140.07,1e-08]
[1745324312676,15.15775122,140.08,140.06,1e-08]
[1745324312883,7.13877784,140.08,140.06,1e-08]
[1745324313082,8.01897338,140.07,140.06,1e-08]
[1745324313906,15.15826087,140.07,140.06,1e-08]
[1745324314406,7.13928749,140.07,140.06,1e-08]
[1745324316009,15.15775122,140.08,140.06,1e-08]
[1745324316181,8.01897338,140.07,140.06,1e-08]
[1745324317080,40.0948669,140.07,140.04,82.6]
[1745324317279,8.01897338,140.05,140.04,0.063]
[1745324318214,15.15928041,140.05,140.04,0.063]
[1745324320282,15.15928041,140.05,140.04,1e-08]
[1745324321506,34.01897338,140.03,140.02,1e-08]
[1745324322308,41.16030023,140.03,140.02,1e-08]
[1745324322695,15.16030023,140.03,140.02,1e-08]
[1745324325532,41.16030023,140.03,140.02,1e-08]
[1745324335123,7.14132685,140.03,140.02,1e-08]
[1745324335432,15.16030023,140.03,140.02,1e-08]
[1745324342642,7.14132685,140.03,140.02,1e-08]
[1745324344034,7.1408169,140.04,140.02,1e-08]
[1745324344932,15.15979028,140.04,140.02,1e-08]
[1745324345138,8.01897338,140.03,140.02,1e-08]
[1745324345834,15.16030023,140.03,140.02,1e-08]
[1745324346041,7.14132685,140.03,140.02,1e-08]
[1745324348534,15.16030023,140.03,140.02,1e-08]
[1745324351246,7.14132685,140.03,140.02,1e-08]
[1745324356325,7.13826825,140.09,140.02,122.57467339]
[1745324356540,7.13826825,140.09,140.05,8.01897338]
[1745324356743,7.13826825,140.09,140.05,92.20587338]
[1745324357046,8.01897338,140.08,140.05,84.1869]
[1745324358246,8.01897338,140.08,140.05,82.537]
[1745324358648,7.13928749,140.07,140.05,82.537]
[1745324363370,7.13877784,140.08,140.05,82.537]
[1745324366439,8.01897338,140.06,140.05,82.537]
[1745324368540,15.1587706,140.06,140.05,82.537]
[1745324369465,7.13979722,140.06,140.05,82.537]
[1745324369937,15.1587706,140.06,140.05,82.537]
[1745324370138,33.00826367,140.06,140.02,1e-08]
[1745324370443,8.01897338,140.03,140.02,1e-08]
[1745324370766,15.16030023,140.03,140.02,1e-08]
[1745324371762,7.14132685,140.03,140.02,1e-08]
[1745324372837,7.1408169,140.04,140.02,1e-08]
[1745324386084,8.01897338,140.03,140.02,1e-08]
[1745324386761,7.14132685,140.03,140.02,1e-08]
[1745324387464,15.16030023,140.03,140.02,1e-08]
[1745324392781,7.14132685,140.03,140.02,1e-08]
[1745324393608,15.16030023,140.03,140.02,1e-08]
[1745324395775,7.14132685,140.03,140.02,1e-08]
[1745324398005,7.1408169,140.04,140.02,1e-08]
[1745324398305,15.15979028,140.04,140.02,1e-08]
[1745324399799,8.01897338,140.03,140.02,1e-08]
[1745324400412,15.16030023,140.03,140.02,1e-08]
[1745324401010,7.14132685,140.03,140.02,1e-08]
[1745324402709,7.1408169,140.04,140.02,1e-08]
[1745324404087,24.99107461,140.05,140.02,1e-08]
[1745324405587,7.14030703,140.05,140.02,8.01897339]
[1745324405792,7.14030703,140.05,140.03,8.01897338]
[1745324406607,7.13993985,140.06,140.04,8.01897338]
[1745324406814,7.13993985,140.06,140.04,90.55597338]
[1745324407789,7.13928749,140.07,140.04,90.55597338]
[1745324408516,7.13928749,140.07,140.04,82.537]
[1745324410418,15.15826087,140.07,140.04,82.537]
[1745324410813,33.00647961,140.07,140.04,82.537]
[1745324411014,8.01897338,140.06,140.04,82.537]
[1745324411412,8.01897338,140.05,140.02,1e-08]
[1745324411616,8.01897338,140.04,140.02,1e-08]
[1745324412100,24.98750623,140.07,140.02,1e-08]
[1745324412294,8.01897338,140.04,140.02,1e-08]
[1745324412513,7.14132685,140.03,140.02,1e-08]
[1745324413339,24.98753994,140.07,140.02,8.01897339]
[1745324413519,8.01897338,140.06,140.02,82.53700001]
[1745324413836,24.98753994,140.07,140.02,82.53700001]
[1745324413837,8.01897338,140.05,140.02,82.53700001]
[1745324415241,8.01897338,140.06,140.02,82.53700001]
[1745324416247,8.01897338,140.05,140.02,82.53700001]
[1745324416546,8.01897338,140.04,140.02,82.53700001]
[1745324417343,7.14132685,140.03,140.02,82.53700001]
[1745324419420,7.1408169,140.04,140.02,82.53700001]
[1745324419746,15.15979028,140.04,140.02,82.53700001]
[1745324423058,8.01897338,140.03,140.02,82.53700001]
[1745324423663,8.01897338,140.03,140.02,1e-08]
[1745324423957,15.15979028,140.04,140.02,1e-08]
[1745324425156,8.01897338,140.03,140.02,1e-08]
[1745324427231,15.16030023,140.03,140.02,1e-08]
[1745324428060,7.14132685,140.03,140.02,1e-08]
[1745324446255,7.1408169,140.04,140.02,1e-08]
[1745324447172,7.1408169,140.04,140.02,8.01897339]
[1745324447349,25.86727018,140.07,140.02,8.01897339]
[1745324447350,7.13979722,140.06,140.03,8.01897338]
[1745324447553,7.13979722,140.06,140.03,90.55597338]
[1745324447755,7.13979722,140.06,140.04,8.01897338]
[1745324448268,24.98572244,140.08,140.04,8.01897338]
[1745324448461,33.00469582,140.08,140.04,82.537]
[1745324451372,8.01897338,140.07,140.04,82.537]
[1745324451679,33.00469582,140.08,140.04,90.55597338]
[1745324451857,8.01897338,140.07,140.04,82.537]
[1745324452059,8.01897338,140.06,140.04,82.537]
[1745324453182,7.14030703,140.05,140.04,82.537]
[1745324460485,7.14000267,140.06,140.04,82.537]
[1745324463788,7.14000267,140.06,140.04,90.55597338]
[1745324464392,7.13943842,140.07,140.05,8.01897338]
[1745324464568,25.92653577,140.1,140.05,8.01897338]
[1745324464769,25.92653577,140.1,140.05,90.55597338]
[1745324464995,33.06429451,140.1,140.05,90.55597338]
[1745324465295,7.20075874,140.1,140.06,8.01897338]
[1745324465505,7.20075874,140.1,140.07,8.01897338]
[1745324466881,0.063,140.1,140.07,8.01897338]
[1745324467995,0.063,140.1,140.06,82.537]
[1745324468168,8.01897338,140.09,140.06,82.537]
[1745324469190,7.13877784,140.08,140.06,82.537]
[1745324471194,8.08197338,140.1,140.06,82.537]
[1745324471981,8.01897338,140.09,140.06,82.537]
[1745324473199,8.01897338,140.07,140.06,82.537]
[1745324473502,15.15826087,140.07,140.06,82.537]
[1745324473694,15.15826087,140.07,140.03,82.537]
[1745324473899,8.01897338,140.06,140.03,82.537]
[1745324475310,7.13928749,140.07,140.03,90.55597338]
[1745324475507,24.98413543,140.09,140.05,8.01897338]
[1745324475678,7.13826825,140.09,140.06,8.01897338]
[1745324475881,7.13826825,140.09,140.06,90.55597338]
[1745324476481,7.20083632,140.1,140.07,8.01897338]
[1745324477475,0.063,140.1,140.07,8.01897338]
[1745324481697,0.063,140.1,140.07,90.55597338]
[1745324482693,0.063,140.1,140.08,8.01897338]
[1745324482894,0.063,140.1,140.09,8.01897338]
[1745324483197,0.063,140.1,140.09,90.55597338]
[1745324484986,0.063,140.12,140.1,82.474]
[1745324485169,0.063,140.12,140.11,8.01897338]
[1745324488106,0.063,140.12,140.11,22.43897338]
[1745324488491,0.063,140.12,140.11,29.57622268]
[1745324488804,0.063,140.12,140.11,22.43897338]
[1745324489499,0.063,140.12,140.11,55.57622268]
[1745324490091,0.063,140.14,140.12,82.411]
[1745324490295,0.063,140.14,140.13,8.01897338]
[1745324493418,0.063,140.14,140.13,90.42997338]
[1745324498801,0.063,140.14,140.13,82.411]
[1745324498997,0.063,140.14,140.13,90.42997338]
[1745324501206,0.063,140.14,140.13,97.56620402]
[1745324501405,0.063,140.14,140.13,90.42997338]
[1745324502007,0.063,140.14,140.13,97.56620402]
[1745324503626,0.063,140.14,140.13,123.56620402]
[1745324504123,0.063,140.14,140.13,155.64209754]
[1745324504419,0.063,140.16,140.15,116.30397338]
[1745324504603,0.063,140.16,140.15,123.43918565]
[1745324511415,0.063,140.16,140.15,116.30397338]
[1745324511607,0.063,140.16,140.15,123.43918565]
[1745324512016,0.063,140.19,140.17,82.222]
[1745324512216,0.063,140.19,140.18,8.01897338]
[1745324515316,0.063,140.19,140.17,96.642]
[1745324515509,0.063,140.19,140.18,8.01897338]
[1745324516636,0.063,140.19,140.17,96.642]
[1745324516637,0.063,140.19,140.17,104.66097338]
[1745324519150,0.063,140.19,140.18,8.01897338]
[1745324521445,0.063,140.19,140.18,41.15265864]
[1745324521615,0.063,140.19,140.18,123.37465864]
[1745324525634,0.063,140.21,140.2,82.096]
[1745324525937,0.063,140.21,140.2,111.64764099]
[1745324527845,0.063,140.21,140.2,104.51497338]
[1745324528842,0.063,140.21,140.2,111.64764099]
[1745324529531,0.063,140.21,140.2,143.72353451]
[1745324530621,0.063,140.21,140.2,111.64764099]
[1745324531539,0.063,140.21,140.2,104.51497338]
[1745324532445,0.063,140.21,140.2,111.64764099]
[1745324534447,0.063,140.23,140.22,108.033]
[1745324534655,0.063,140.23,140.22,116.05197338]
[1745324535548,0.063,140.23,140.22,123.18362364]
[1745324535844,0.063,140.23,140.22,97.18362364]
[1745324536045,0.063,140.25,140.24,26.0]
[1745324536255,0.063,140.25,140.24,34.01897338]
[1745324536442,0.063,140.25,140.24,41.14960658]
[1745324537039,0.063,140.26,140.24,41.14960658]
[1745324537225,0.063,140.26,140.25,22.41897338]
[1745324538044,0.063,140.26,140.25,29.54909815]
[1745324538255,0.063,140.28,140.25,34.45698579]
[1745324538430,0.063,140.28,140.26,8.01897338]
[1745324540559,0.063,140.28,140.26,15.1485898]
[1745324540957,0.063,140.28,140.26,8.01897338]
[1745324543163,0.03,140.29,140.28,107.94]
[1745324543458,0.03,140.29,140.28,115.95897338]
[1745324545644,0.03,140.29,140.28,148.0348669]
[1745324545844,0.03,140.29,140.28,115.95897338]
[1745324546648,0.03,140.29,140.28,155.16346684]
[1745324548574,0.03,140.29,140.28,129.16346684]
[1745324549057,0.03,140.31,140.3,107.88]
[1745324549243,0.03,140.31,140.3,130.29897338]
[1745324554666,1.6517,140.33,140.31,81.85]
[1745324554970,0.03,140.33,140.32,8.01897338]
[1745324555571,0.03,140.33,140.32,89.86897338]
[1745324556669,0.03,140.33,140.32,96.99554122]
[1745324558477,0.03,140.33,140.32,89.86897338]
[1745324559674,0.03,140.33,140.32,96.99554122]
[1745324560047,0.03,140.33,140.32,89.86897338]
[1745324560263,0.03,140.33,140.32,96.99554122]
[1745324560969,0.03,140.36,140.35,89.77597338]
[1745324561571,0.03,140.36,140.35,81.757]
[1745324568692,7.1545369,140.36,140.35,81.757]
[1745324570570,0.03,140.36,140.35,81.757]
[1745324574087,0.03,140.36,140.35,89.77597338]
[1745324574880,0.03,140.36,140.35,81.757]
[1745324586220,0.03,140.36,140.35,89.77597338]
[1745324589310,0.03,140.37,140.36,89.74597338]
[1745324591807,0.03,140.37,140.36,81.727]
[1745324592008,0.03,140.37,140.36,89.74597338]
[1745324593730,0.03,140.37,140.36,96.87051028]
[1745324594335,0.03,140.42,140.38,81.697]
[1745324594537,0.03,140.42,140.41,8.01897338]
[1745324594834,0.03,140.42,140.41,89.71597338]
[1745324595037,0.03,140.42,140.41,81.697]
[1745324595229,15.17046604,140.42,140.41,81.697]
[1745324596356,0.03,140.42,140.41,81.697]
[1745324596507,8.04897338,140.42,140.41,81.697]
[1745324597624,15.17046604,140.42,140.41,81.697]
[1745324600130,0.03,140.42,140.41,81.697]
[1745324602757,0.03,140.42,140.41,89.71597338]
[1745324602944,0.03,140.42,140.41,81.697]
[1745324603330,0.03,140.42,140.41,115.71597338]
[1745324603562,0.03,140.42,140.41,130.07597338]
[1745324604152,0.03,140.42,140.41,122.057]
[1745324604351,0.03,140.42,140.41,130.07597338]
[1745324605438,0.03,140.42,140.41,122.057]
[1745324605853,24.91834239,140.46,140.41,122.057]
[1745324606160,8.01897338,140.44,140.41,96.057]
[1745324606365,7.12098554,140.43,140.41,96.057]
[1745324607637,7.12062531,140.44,140.41,96.057]
[1745324608447,7.12062531,140.44,140.41,104.07597338]
[1745324609961,8.7210037,140.45,140.42,8.01897338]
[1745324610165,7.1200037,140.45,140.42,8.01897338]
[1745324610569,7.1200037,140.45,140.42,81.697]
[1745324611140,8.01897338,140.43,140.42,81.697]
[1745324612265,15.13995892,140.43,140.42,81.697]
[1745324616766,7.11946461,140.46,140.42,81.697]
[1745324616957,8.01897338,140.45,140.42,81.697]
[1745324617147,7.11946461,140.46,140.42,81.697]
[1745324617349,8.01897338,140.44,140.42,81.697]
[1745324617561,7.12098554,140.43,140.42,81.697]
[1745324618161,15.13995892,140.43,140.42,81.697]
[1745324618374,7.12098554,140.43,140.42,81.697]
[1745324619652,7.12047849,140.44,140.42,81.697]
[1745324620356,15.13945187,140.44,140.42,81.697]
[1745324622353,7.12047849,140.44,140.42,81.697]
[1745324622566,15.13945187,140.44,140.42,81.697]
[1745324622977,7.12047849,140.44,140.42,81.697]
[1745324623274,15.13945187,140.44,140.42,81.697]
[1745324623861,8.01897338,140.43,140.42,81.697]
[1745324624373,7.11997152,140.45,140.42,81.697]
[1745324624675,15.1389449,140.45,140.42,81.697]
[1745324625569,7.11997152,140.45,140.42,81.697]
[1745324625873,15.1389449,140.45,140.42,81.697]
[1745324627756,7.11997152,140.45,140.42,81.697]
[1745324628276,15.13848724,140.46,140.42,89.71597338]
[1745324628483,7.11951386,140.46,140.42,89.71597338]
[1745324630870,7.11951386,140.46,140.42,81.697]
[1745324631171,7.11951386,140.46,140.42,89.71597338]
[1745324631385,7.11951386,140.46,140.43,8.01897338]
[1745324631561,7.11951386,140.46,140.42,89.71597338]
[1745324632372,8.01897338,140.44,140.42,81.697]
[1745324632685,8.01897338,140.46,140.42,81.697]